[Event "Queens Festival Final Team 2022"]
[Site "Tornelo"]
[Date "2022.06.26"]
[Round "9.3"]
[White "Kosgey Sheila Jerop"]
[Black "Perez, Dalila"]
[Result "0-1"]
[ECO "C00"]
[WhiteElo "1242"]
[BlackElo "1799"]
[Annotator "NA RC"]
[PlyCount "34"]
[EventDate "2022.06.24"]
[EventType "team-tourn"]
[EventCountry "NET"]
[SourceTitle "playchess.com"]
[Source "ChessBase"]
[SourceQuality "1"]
[WhiteTeam "Kenya"]
[BlackTeam "Paraguay"]
[WhiteTeamCountry "KEN"]
[BlackTeamCountry "PAR"]
[TimeControl "180+2"]

1. e4 {[%emt 0:00:02]} e6 {[%emt 0:00:05]} 2. d3 {[%emt 0:00:03]} d5 {[%emt 0:00:01]} 3. Nd2 {[%emt 0:00:02]} c5 {[%emt 0:00:02]} 4. Ngf3 {[%emt 0:00:03]} Nf6 {[%emt 0:00:01]} 5. g3 {[%emt 0:00:02]} Be7 {[%emt 0:00:02]} 6. Bg2 {[%emt 0:00:01]} Nc6 {[%emt 0:00:01]} 7. O-O {[%emt 0:00:02]} O-O {[%emt 0:00:00]} 8. Re1 {[%emt 0:00:02]} b5 {[%emt 0:00:02]} 9. Nf1 {[%emt 0:00:08]} a5 {[%emt 0:00:02]} 10. h4 {[%emt 0:00:13]} dxe4 {[%emt 0:00:04]} 11. dxe4 {[%emt 0:00:08]} Qxd1 {[%emt 0:00:02]} 12. Rxd1 {[%emt 0:00:03]} Nxe4 {[%emt 0:00:03]} 13. N3h2 {[%emt 0:00:08]} f5 {[%emt 0:00:04]} 14. Re1 {[%emt 0:00:16]} Bb7 {[%emt 0:00:05]} 15. Bxe4 {[%emt 0:00:04]} fxe4 {[%emt 0:00:01]} 16. Rxe4 {[%emt 0:00:03]} Nd4 {[%emt 0:00:03]} 17. Re2 {[%emt 0:00:10]} Nxe2# {[%emt 0:00:03]} 0-1

[Event "Queens Festival Final Team 2022"]
[Site "Tornelo"]
[Date "2022.06.26"]
[Round "9.4"]
[White "Medeiros, Thauane Ferreira"]
[Black "Moshoboro Arona"]
[Result "1-0"]
[ECO "D02"]
[WhiteElo "1884"]
[BlackElo "1555"]
[Annotator "NA RC"]
[PlyCount "87"]
[EventDate "2022.06.24"]
[EventType "team-tourn"]
[EventCountry "NET"]
[SourceTitle "playchess.com"]
[Source "ChessBase"]
[SourceQuality "1"]
[WhiteTeam "Brazil"]
[BlackTeam "Botswana"]
[WhiteTeamCountry "BRA"]
[BlackTeamCountry "BOT"]
[TimeControl "180+2"]

1. d4 {[%emt 0:00:02]} e6 {[%emt 0:00:17]} 2. Bf4 {[%emt 0:00:02]} d5 {[%emt 0:00:11]} 3. e3 {[%emt 0:00:01]} Bd7 {[%emt 0:00:23]} 4. Bd3 {[%emt 0:00:04]} Nf6 {[%emt 0:00:10]} 5. Nd2 {[%emt 0:00:02]} c5 {[%emt 0:00:03]} 6. c3 {[%emt 0:00:01]} Nc6 {[%emt 0:00:04]} 7. Ngf3 {[%emt 0:00:03]} Be7 {[%emt 0:00:10]} 8. h3 {[%emt 0:00:04]} O-O {[%emt 0:00:03]} 9. O-O {[%emt 0:00:03]} c4 {[%emt 0:00:05]} 10. Bc2 {[%emt 0:00:02]} Rc8 {[%emt 0:00:04]} 11. e4 {[%emt 0:00:20]} Qb6 {[%emt 0:00:10]} 12. Rb1 {[%emt 0:00:14]} Rfd8 {[%emt 0:00:16]} 13. e5 {[%emt 0:00:02]} Ne8 {[%emt 0:00:02]} 14. Ng5 {[%emt 0:00:24]} g6 {[%emt 0:00:06]} 15. Qf3 {[%emt 0:00:41]} Ng7 {[%emt 0:00:03]} 16. Be3 {[%emt 0:00:52]} Rf8 {[%emt 0:00:06]} 17. Qg4 {[%emt 0:00:21]} Qd8 {[%emt 0:00:05]} 18. Ngf3 {[%emt 0:00:04]} Nf5 {[%emt 0:00:07]} 19. Bxf5 {[%emt 0:00:05]} exf5 {[%emt 0:00:03]} 20. Qg3 {[%emt 0:00:02]} Be6 {[%emt 0:00:06]} 21. Bh6 {[%emt 0:00:03]} Re8 {[%emt 0:00:03]} 22. h4 {[%emt 0:00:03]} Bf8 {[%emt 0:00:07]} 23. Bg5 {[%emt 0:00:01]} Be7 {[%emt 0:00:08]} 24. h5 {[%emt 0:00:00]} Bxg5 {[%emt 0:00:07]} 25. Nxg5 {[%emt 0:00:00]} Bd7 {[%emt 0:00:04]} 26. hxg6 {[%emt 0:00:02]} fxg6 {[%emt 0:00:02]} 27. Rfe1 {[%emt 0:00:02]} Kg7 {[%emt 0:00:03]} 28. e6 {[%emt 0:00:02]} Bxe6 {[%emt 0:00:15]} 29. Nxe6+ {[%emt 0:00:00]} Rxe6 {[%emt 0:00:02]} 30. Rxe6 {[%emt 0:00:01]} Qf8 {[%emt 0:00:04]} 31. Rbe1 {[%emt 0:00:02]} Rc7 {[%emt 0:00:02]} 32. Qxc7+ {[%emt 0:00:06]} Kh6 {[%emt 0:00:07]} 33. Qf4+ {[%emt 0:00:02]} Kg7 {[%emt 0:00:03]} 34. Nf3 {[%emt 0:00:03]} Qf7 {[%emt 0:00:05]} 35. Re8 {[%emt 0:00:02]} b6 {[%emt 0:00:07]} 36. Ng5 {[%emt 0:00:01]} Qb7 {[%emt 0:00:05]} 37. Ne6+ {[%emt 0:00:03]} Kf7 {[%emt 0:00:05]} 38. Ng5+ {[%emt 0:00:01]} Kg7 {[%emt 0:00:03]} 39. Qd6 {[%emt 0:00:01]} Qc8 {[%emt 0:00:03]} 40. Rxc8 {[%emt 0:00:03]} Na5 {[%emt 0:00:03]} 41. Rc7+ {[%emt 0:00:00]} Kh6 {[%emt 0:00:03]} 42. Nf7+ {[%emt 0:00:00]} Kh5 {[%emt 0:00:02]} 43. Qh2+ {[%emt 0:00:02]} Kg4 {[%emt 0:00:03]} 44. f3# {[%emt 0:00:00]} 1-0

[Event "Queens Festival Final Team 2022"]
[Site "Tornelo"]
[Date "2022.06.26"]
[Round "9.4"]
[White "Francis, Onkemetse"]
[Black "Bucci, Andrea Vidigal"]
[Result "1-0"]
[ECO "C41"]
[WhiteElo "1777"]
[BlackElo "1769"]
[Annotator "NA RC"]
[PlyCount "100"]
[EventDate "2022.06.24"]
[EventType "team-tourn"]
[EventCountry "NET"]
[SourceTitle "playchess.com"]
[Source "ChessBase"]
[SourceQuality "1"]
[WhiteTeam "Botswana"]
[BlackTeam "Brazil"]
[WhiteTeamCountry "BOT"]
[BlackTeamCountry "BRA"]
[TimeControl "180+2"]

1. e4 {[%emt 0:00:02]} e5 {[%emt 0:00:05]} 2. Nf3 {[%emt 0:00:03]} d6 {[%emt 0:00:03]} 3. d4 {[%emt 0:00:04]} Nf6 {[%emt 0:00:02]} 4. Nc3 {[%emt 0:00:12]} c6 {[%emt 0:00:09]} 5. dxe5 {[%emt 0:00:03]} Ng4 {[%emt 0:00:05]} 6. exd6 {[%emt 0:00:04]} Qb6 {[%emt 0:00:05]} 7. Qd4 {[%emt 0:00:21]} Qxd4 {[%emt 0:00:17]} 8. Nxd4 {[%emt 0:00:03]} Bxd6 {[%emt 0:00:01]} 9. h3 {[%emt 0:00:03]} Ne5 {[%emt 0:00:02]} 10. Be3 {[%emt 0:00:04]} O-O {[%emt 0:00:03]} 11. Be2 {[%emt 0:00:03]} Nbd7 {[%emt 0:00:02]} 12. O-O {[%emt 0:00:02]} Nf6 {[%emt 0:00:03]} 13. Rad1 {[%emt 0:00:04]} Bb4 {[%emt 0:00:07]} 14. Bd2 {[%emt 0:00:08]} Bxc3 {[%emt 0:00:08]} 15. Bxc3 {[%emt 0:00:03]} Nxe4 {[%emt 0:00:01]} 16. Bd2 {[%emt 0:00:15]} Nxd2 {[%emt 0:00:02]} 17. Rxd2 {[%emt 0:00:02]} Rd8 {[%emt 0:00:08]} 18. Rfd1 {[%emt 0:00:05]} f6 {[%emt 0:00:08]} 19. f4 {[%emt 0:00:07]} Nf7 {[%emt 0:00:05]} 20. Bc4 {[%emt 0:00:04]} Kf8 {[%emt 0:00:03]} 21. Nf3 {[%emt 0:00:09]} Rxd2 {[%emt 0:00:14]} 22. Rxd2 {[%emt 0:00:02]} Bf5 {[%emt 0:00:01]} 23. c3 {[%emt 0:00:04]} Rd8 {[%emt 0:00:03]} 24. Rxd8+ {[%emt 0:00:05]} Nxd8 {[%emt 0:00:02]} 25. Nd4 {[%emt 0:00:02]} Bd7 {[%emt 0:00:02]} 26. Nb3 {[%emt 0:00:06]} b6 {[%emt 0:00:05]} 27. Nd4 {[%emt 0:00:04]} Ke7 {[%emt 0:00:02]} 28. Kf2 {[%emt 0:00:03]} c5 {[%emt 0:00:04]} 29. Nc2 {[%emt 0:00:06]} Ne6 {[%emt 0:00:06]} 30. Ne3 {[%emt 0:00:03]} Nxf4 {[%emt 0:00:04]} 31. Kf3 {[%emt 0:00:03]} Nd3 {[%emt 0:00:04]} 32. Bxd3 {[%emt 0:00:04]} Bc6+ {[%emt 0:00:06]} 33. Kf2 {[%emt 0:00:02]} Kd6 {[%emt 0:00:02]} 34. Nf5+ {[%emt 0:00:03]} Ke5 {[%emt 0:00:04]} 35. Nxg7 {[%emt 0:00:02]} Bd5 {[%emt 0:00:01]} 36. a3 {[%emt 0:00:04]} c4 {[%emt 0:00:02]} 37. Bc2 {[%emt 0:00:03]} b5 {[%emt 0:00:02]} 38. Nf5 {[%emt 0:00:04]} a5 {[%emt 0:00:04]} 39. Ne7 {[%emt 0:00:04]} Be6 {[%emt 0:00:04]} 40. Nc6+ {[%emt 0:00:03]} Kf4 {[%emt 0:00:11]} 41. Nxa5 {[%emt 0:00:03]} Bd5 {[%emt 0:00:01]} 42. a4 {[%emt 0:00:05]} bxa4 {[%emt 0:00:06]} 43. Bxa4 {[%emt 0:00:02]} f5 {[%emt 0:00:02]} 44. Bb5 {[%emt 0:00:02]} h5 {[%emt 0:00:03]} 45. Bxc4 {[%emt 0:00:02]} Ba8 {[%emt 0:00:02]} 46. Be2 {[%emt 0:00:05]} h4 {[%emt 0:00:02]} 47. b4 {[%emt 0:00:02]} Ke4 {[%emt 0:00:01]} 48. Ba6 {[%emt 0:00:04]} Kf4 {[%emt 0:00:03]} 49. b5 {[%emt 0:00:03]} Ke4 {[%emt 0:00:07]} 50. b6 {[%emt 0:00:02]} Kd5 {[%emt 0:00:04]} 1-0

[Event "Queens Festival Final Team 2022"]
[Site "Tornelo"]
[Date "2022.06.26"]
[Round "9.4"]
[White "Marape, Naledi"]
[Black "Alboredo, Julia"]
[Result "0-1"]
[ECO "B76"]
[WhiteElo "1707"]
[BlackElo "2252"]
[Annotator "TA"]
[PlyCount "62"]
[EventDate "2022.06.24"]
[EventType "team-tourn"]
[EventCountry "NET"]
[SourceTitle "playchess.com"]
[Source "ChessBase"]
[SourceQuality "1"]
[WhiteTeam "Botswana"]
[BlackTeam "Brazil"]
[WhiteTeamCountry "BOT"]
[BlackTeamCountry "BRA"]
[TimeControl "180+2"]

{[%evp 25,62,34,41,-39,-33,-652,-666,-829,-822,-993,-983,-934,-918,-974,-966,-958,-928,-952,-885,-2346,-2346,-2195,-1915,-5381,-5171,-2552,-2543,-2531,-2168,-1937,-1784,-4858,-2526,-12850,-29956,-12850,-6303,-29969,-6279]} 1. e4 {[%emt 0:00:02]} c5 {[%emt 0:00:05]} 2. Nf3 {[%emt 0:00:03]} d6 {[%emt 0:00:02]} 3. d4 {[%emt 0:00:03]} cxd4 {[%emt 0:00:00]} 4. Nxd4 {[%emt 0:00:04]} Nf6 {[%emt 0:00:01]} 5. Nc3 {[%emt 0:00:03]} g6 {[%emt 0:00:01]} 6. f3 {[%emt 0:00:14]} Bg7 {[%emt 0:00:03]} 7. Be3 {[%emt 0:00:03]} Nc6 {[%emt 0:00:01]} 8. Qd2 {[%emt 0:00:03]} O-O {[%emt 0:00:02]} 9. O-O-O {[%emt 0:00:04]} d5 {[%emt 0:00:01]} 10. exd5 {[%emt 0:00:05]} Nxd5 {[%emt 0:00:02]} 11. Nxc6 {[%emt 0:00:03]} bxc6 {[%emt 0:00:02]} 12. Bd4 {[%emt 0:00:03]} e5 {[%emt 0:00:03]} 13. Bc5 {[%emt 0:00:05]} Be6 {[%emt 0:00:01] 13...Re8 is the fancy move.} 14. Bxf8 {[%emt 0:00:04] B76: Sicilian Dragon: Yugoslav Attack, 9 g4 and 9 0-0-0.} (14. Ne4 $14) 14... Qxf8 $15 {[%emt 0:00:02]} 15. Bc4 $2 {[%emt 0:00:15][%mdl 8192]} (15. Nxd5 $15 cxd5 16. Qa5) 15... Bh6 $19 {[%emt 0:00:03] [#] And now ...Nxc3 would win.} 16. f4 {[%emt 0:00:19] Black is clearly winning.} Bxf4 {[%emt 0:00:03]} 17. Nxd5 {[%emt 0:00:06] [#]} Bxd2+ $146 {[%emt 0:00:02]} ({Predecessor:} 17... cxd5 18. Qxf4 exf4 19. Bb3 d4 20. Rxd4 Bxb3 21. axb3 Qc5 22. Rhd1 Rc8 23. c3 g5 {0-1 (32) Zong,D (2141)-Shtyka,S (2154) Chess.com INT 2022}) 18. Rxd2 {[%emt 0:00:03]} cxd5 {[%emt 0:00:02]} 19. Bxd5 {[%emt 0:00:04]} Bxd5 {[%emt 0:00:04]} 20. Rxd5 {[%emt 0:00:03]} Qb4 {[%emt 0:00:14]} 21. Rhd1 {[%emt 0:00:06]} Re8 {[%emt 0:00:04]} 22. Rd8 {[%emt 0:00:04]} Rxd8 {[%emt 0:00:01]} 23. Rxd8+ {[%emt 0:00:03][%mdl 4096] Endgame KQ-KR} Kg7 {[%emt 0:00:00]} 24. c3 {[%emt 0:00:05]} Qf4+ {[%emt 0:00:03]} 25. Kc2 {[%emt 0:00:02]} Qxh2 {[%emt 0:00:08]} 26. Rd2 {[%emt 0:00:02]} e4 {[%emt 0:00:04]} 27. Re2 {[%emt 0:00:05]} Qf4 {[%emt 0:00:03]} 28. c4 {[%emt 0:01:16]} f5 {[%emt 0:00:04] [#] Threatens to win with ...Qf1.} 29. c5 {[%emt 0:00:05]} a5 {[%emt 0:00:03]} 30. a3 {[%emt 0:00:05]} Qe5 {[%emt 0:00:07]} 31. Kc1 {[%emt 0:00:09]} Qxc5+ {[%emt 0:00:03] White got outplayed after the opening.  Weighted Error Value: White=1.91/Black=0.09 (flawless)} 0-1

[Event "Queens Festival Final Team 2022"]
[Site "Tornelo"]
[Date "2022.06.26"]
[Round "9.4"]
[White "Gomes, Maria Eduarda Papini"]
[Black "Banda Natalie Katlo"]
[Result "1-0"]
[ECO "D13"]
[WhiteElo "1618"]
[BlackElo "1629"]
[Annotator "NA RC"]
[PlyCount "61"]
[EventDate "2022.06.24"]
[EventType "team-tourn"]
[EventCountry "NET"]
[SourceTitle "playchess.com"]
[Source "ChessBase"]
[SourceQuality "1"]
[WhiteTeam "Brazil"]
[BlackTeam "Botswana"]
[WhiteTeamCountry "BRA"]
[BlackTeamCountry "BOT"]
[TimeControl "180+2"]

1. d4 {[%emt 0:00:02]} d5 {[%emt 0:00:05]} 2. c4 {[%emt 0:00:02]} c6 {[%emt 0:00:04]} 3. Nc3 {[%emt 0:00:01]} Nf6 {[%emt 0:00:03]} 4. cxd5 {[%emt 0:00:02]} cxd5 {[%emt 0:00:05]} 5. Nf3 {[%emt 0:00:10]} e6 {[%emt 0:00:03]} 6. Bg5 {[%emt 0:00:03]} h6 {[%emt 0:00:03]} 7. Bh4 {[%emt 0:00:04]} Be7 {[%emt 0:00:06]} 8. e3 {[%emt 0:00:02]} Bd7 {[%emt 0:00:02]} 9. Bd3 {[%emt 0:00:03]} a6 {[%emt 0:00:02]} 10. Qc2 {[%emt 0:00:03]} Nc6 {[%emt 0:00:07]} 11. a3 {[%emt 0:00:03]} Rc8 {[%emt 0:00:09]} 12. O-O {[%emt 0:00:08]} g5 {[%emt 0:00:05]} 13. Bg3 {[%emt 0:00:03]} Nh5 {[%emt 0:00:10]} 14. Qe2 {[%emt 0:00:35]} Nxg3 {[%emt 0:00:09]} 15. hxg3 {[%emt 0:00:00]} f5 {[%emt 0:00:02]} 16. Na4 {[%emt 0:00:10]} b5 {[%emt 0:00:16]} 17. Nc5 {[%emt 0:00:02]} Bxc5 {[%emt 0:00:04]} 18. dxc5 {[%emt 0:00:00]} Qe7 {[%emt 0:00:05]} 19. b4 {[%emt 0:00:03]} e5 {[%emt 0:00:04]} 20. Bc2 {[%emt 0:00:17]} e4 {[%emt 0:00:03]} 21. Nd4 {[%emt 0:00:02]} Nxd4 {[%emt 0:00:02]} 22. exd4 {[%emt 0:00:02]} h5 {[%emt 0:00:03]} 23. f3 {[%emt 0:00:05]} h4 {[%emt 0:00:04]} 24. fxe4 {[%emt 0:00:05]} fxe4 {[%emt 0:00:07]} 25. gxh4 {[%emt 0:00:13]} Rxh4 {[%emt 0:00:04]} 26. g3 {[%emt 0:00:11]} Bg4 {[%emt 0:00:12]} 27. Qf2 {[%emt 0:00:10]} Rh6 {[%emt 0:00:08]} 28. Bd1 {[%emt 0:00:17]} Qh7 {[%emt 0:00:46]} 29. Qf8+ {[%emt 0:00:05]} Kd7 {[%emt 0:00:09]} 30. Bxg4+ {[%emt 0:00:03]} Kc7 {[%emt 0:00:10]} 31. Qxc8# {[%emt 0:00:02]} 1-0

[Event "Queens Festival Final Team 2022"]
[Site "Tornelo"]
[Date "2022.06.26"]
[Round "9.5"]
[White "Shriyan santosh Priyasha"]
[Black "Krush, Irina"]
[Result "0-1"]
[ECO "A43"]
[WhiteElo "1597"]
[BlackElo "2430"]
[Annotator "TA"]
[PlyCount "116"]
[EventDate "2022.06.24"]
[EventType "team-tourn"]
[EventCountry "NET"]
[SourceTitle "playchess.com"]
[Source "ChessBase"]
[SourceQuality "1"]
[WhiteTeam "MAW"]
[BlackTeam "United States"]
[BlackTeamCountry "USA"]
[TimeControl "180+2"]

{[%evp 9,116,-14,1,-52,-38,-43,-28,-34,-1,-86,-89,-117,-106,-149,-145,-152,-140,-196,-185,-225,-212,-418,-256,-763,-742,-756,-745,-929,-413,-389,-379,-395,-308,-437,-176,-235,-227,-206,-153,-148,-156,-131,-88,-267,-234,-273,-271,-248,-265,-277,-239,-370,-329,-302,-268,-489,-320,-492,-439,-630,-613,-780,-768,-774,-770,-1474,-1400,-1944,-1964,-1812,-956,-956,-956,-954,-793,-1113,-1073,-3099,-5731,-4014,-2771,-2083,-1832,-5527,-2915,-29968,-29969,-6854,-6516,-29971,-29972,-29975,-29975,-29978,-29975,-29972,-29968,-29980,-29981,-29981,-29982,-29982,-29982,-29978,-29979,-29985,-29977,-29983,-6215]} 1. Nf3 {[%emt 0:00:02]} c5 {[%emt 0:00:07]} 2. d4 {[%emt 0:00:03]} cxd4 {[%emt 0:00:02]} 3. Nxd4 {[%emt 0:00:00]} d5 {[%emt 0:00:03]} 4. Nf3 {[%emt 0:00:04]} Nc6 {[%emt 0:00:03]} 5. c4 {[%emt 0:00:03]} Nf6 {[%emt 0:00:09]} ({Resist} 5... dxc4 6. Qxd8+ Kxd8 7. e4 $14) 6. g3 {[%emt 0:00:02] A43: Schmid Benoni.} (6. cxd5 $11 Qxd5 7. Qxd5 Nxd5 8. a3) 6... d4 {[%emt 0:00:23]} 7. Bg2 {[%emt 0:00:05]} e5 {[%emt 0:00:02]} 8. O-O {[%emt 0:00:07] Black has an edge.} Bc5 {[%emt 0:00:05] [#]} 9. Nfd2 $146 {[%emt 0:00:05]} (9. b4 $1 $11 {keeps the balance.} Bxb4 10. Nxe5 Nxe5 11. Qa4+ Nc6 12. Bxc6+ bxc6 13. Qxb4) ({Predecessor:} 9. Nbd2 O-O 10. Ng5 Bf5 11. Nge4 Nxe4 12. Nxe4 Be7 13. b3 Rc8 14. Bb2 Bg6 15. a3 f5 16. Nd2 {0-1 (40) Pourramezanali,A (2480)-Kulkarni,R (2360) Chess.com INT 2019}) 9... O-O {[%emt 0:00:03]} 10. a3 {[%emt 0:00:02]} a5 $36 {[%emt 0:00:02][%mdl 2048] Keeping White busy. Black is more active.} 11. Ne4 {[%emt 0:00:07]} Nxe4 {[%emt 0:00:07]} 12. Bxe4 {[%emt 0:00:00]} Be6 {[%emt 0:00:02]} 13. Qc2 {[%emt 0:00:06]} (13. Qb3 $17 Qe7 14. Nd2) 13... f5 $19 {[%emt 0:00:03]} 14. Bg2 {[%emt 0:00:03]} e4 {[%emt 0:00:04]} 15. Rd1 $2 {[%emt 0:00:04]} (15. Nd2) 15... Qe7 {[%emt 0:00:08][%cal Od4d3]} 16. h4 $2 {[%emt 0:00:05]} (16. Nd2) 16... d3 {[%emt 0:00:21]} 17. exd3 {[%emt 0:00:13]} Nd4 {[%emt 0:00:01]} 18. Qd2 {[%emt 0:00:27]} Nb3 {[%emt 0:00:03]} (18... f4 $142 {[%cal Oe4e3] Threatens to win with ...e3!} 19. Nc3 fxg3) 19. Qc3 {[%emt 0:00:20]} Nxa1 {[%emt 0:00:03]} 20. d4 {[%emt 0:00:08]} Ba7 {[%emt 0:00:17]} 21. Bg5 {[%emt 0:00:07]} (21. b3 $142) 21... Qc7 {[%emt 0:00:09]} (21... Qd7 $142 22. d5 f4 23. Bxf4 Bh3) 22. d5 {[%emt 0:00:07]} (22. Nd2 $142) 22... Bf7 {[%emt 0:00:02]} 23. Nd2 {[%emt 0:00:12]} a4 {[%emt 0:00:06][%cal Oa1b3] [#] And now ...Nb3! would win.} 24. Rxa1 {[%emt 0:00:05]} b5 {[%emt 0:00:07]} 25. Bf4 {[%emt 0:00:10]} Qd7 {[%emt 0:00:03]} 26. cxb5 $2 {[%emt 0:00:17] White does not recover from this.} (26. Rd1 $17) 26... Qxd5 {[%emt 0:00:02] ...Rfc8 is the strong threat.} ({Wrong is} 26... Bxd5 $2 27. Qb4 $19) 27. Nf1 {[%emt 0:00:05]} Qxb5 {[%emt 0:00:07]} 28. Ne3 {[%emt 0:00:08]} Rac8 {[%emt 0:00:02]} 29. Qd2 {[%emt 0:00:10]} Rfd8 {[%emt 0:00:03]} 30. Qe1 {[%emt 0:00:04]} (30. Qb4 $142 Qxb4 31. axb4) 30... Bd4 {[%emt 0:00:20]} 31. Rb1 {[%emt 0:00:11]} h6 {[%emt 0:00:05] Against Bg5} 32. Nf1 $2 {[%emt 0:00:08]} (32. Bf1 {might work better.} Qc5 33. Bh3) 32... Be5 {[%emt 0:00:05]} 33. Be3 {[%emt 0:00:03]} (33. Bxe5 {was worth a try.} Qxe5 34. Ne3) 33... Bc4 {[%emt 0:00:10]} 34. Nd2 {[%emt 0:00:03]} (34. Bh3 $142 Be6 35. Ba7) 34... Bd3 {[%emt 0:00:01]} 35. Rc1 {[%emt 0:00:04]} Bxb2 {[%emt 0:00:03]} 36. Rxc8 {[%emt 0:00:03]} Rxc8 {[%emt 0:00:01]} 37. Nf1 {[%emt 0:00:02]} Bxa3 {[%emt 0:00:05]} 38. Qa1 {[%emt 0:00:02]} Bb2 {[%emt 0:00:03]} 39. Qa2+ {[%emt 0:00:01]} Qb3 {[%emt 0:00:01]} 40. Qxb3+ {[%emt 0:00:03]} axb3 {[%emt 0:00:01]} 41. Nd2 {[%emt 0:00:02]} Bc2 {[%emt 0:00:05]} 42. Bf1 {[%emt 0:00:02]} Bc1 {[%emt 0:00:03] aiming for ...Bxd2.} 43. Bc4+ {[%emt 0:00:01] [#]} Rxc4 $1 {[%emt 0:00:02]} 44. Nxc4 {[%emt 0:00:01]} Bxe3 {[%emt 0:00:02]} 45. fxe3 {[%emt 0:00:03][%mdl 4096] Endgame KB-KN} Kf7 {[%emt 0:00:04] Hoping for ...Ke6.} 46. Kf2 {[%emt 0:00:03]} Ke6 {[%emt 0:00:05] ( -> ...Kd5)} 47. Ke1 {[%emt 0:00:02]} Kd5 {[%emt 0:00:02]} 48. Nb2 {[%emt 0:00:04]} Kc5 {[%emt 0:00:01]} 49. Kd2 {[%emt 0:00:01]} Kb4 {[%emt 0:00:01] Black mates.} 50. h5 {[%emt 0:00:03]} Bd3 {[%emt 0:00:03]} 51. Kc1 {[%emt 0:00:05]} Bb5 {[%emt 0:00:03]} 52. Kd2 {[%emt 0:00:02]} Be8 {[%emt 0:00:01]} 53. Kc1 {[%emt 0:00:05]} Bxh5 {[%emt 0:00:02]} 54. Kd2 {[%emt 0:00:01]} Bf7 {[%emt 0:00:02]} 55. Kc1 {[%emt 0:00:01]} g5 {[%emt 0:00:02]} 56. Kd2 {[%emt 0:00:02]} h5 {[%emt 0:00:01]} 57. Kc1 {[%emt 0:00:05]} Kc3 {[%emt 0:00:03]} 58. Kb1 {[%emt 0:00:02]} Kd2 {[%emt 0:00:03] Weighted Error Value: White=1.24/Black=0.47} 0-1

[Event "Queens Festival Final Team 2022"]
[Site "Tornelo"]
[Date "2022.06.26"]
[Round "9.5"]
[White "Nkhoma, Desiderata"]
[Black "Yellamraju, Aparna"]
[Result "0-1"]
[ECO "C01"]
[WhiteElo "1465"]
[BlackElo "1720"]
[Annotator "NA RC"]
[PlyCount "74"]
[EventDate "2022.06.24"]
[EventType "team-tourn"]
[EventCountry "NET"]
[SourceTitle "playchess.com"]
[Source "ChessBase"]
[SourceQuality "1"]
[WhiteTeam "MAW"]
[BlackTeam "United States"]
[BlackTeamCountry "USA"]
[TimeControl "180+2"]

1. e4 {[%emt 0:00:02]} e6 {[%emt 0:00:04]} 2. Nf3 {[%emt 0:00:04]} d5 {[%emt 0:00:02]} 3. exd5 {[%emt 0:00:04]} exd5 {[%emt 0:00:01]} 4. d4 {[%emt 0:00:02]} Bd6 {[%emt 0:00:02]} 5. Bd3 {[%emt 0:00:05]} Ne7 {[%emt 0:00:02]} 6. O-O {[%emt 0:00:03]} O-O {[%emt 0:00:03]} 7. c3 {[%emt 0:00:05]} Bf5 {[%emt 0:00:03]} 8. Bg5 {[%emt 0:00:15]} f6 {[%emt 0:00:02]} 9. Bh4 {[%emt 0:00:11]} c6 {[%emt 0:00:03]} 10. Be2 {[%emt 0:00:11]} Qc7 {[%emt 0:00:05]} 11. Nbd2 {[%emt 0:00:04]} Nd7 {[%emt 0:00:03]} 12. h3 {[%emt 0:00:03]} Ng6 {[%emt 0:00:05]} 13. Bg3 {[%emt 0:00:04]} Bxg3 {[%emt 0:00:02]} 14. fxg3 {[%emt 0:00:05]} Qxg3 {[%emt 0:00:17]} 15. Rf2 {[%emt 0:00:34]} Nf4 {[%emt 0:00:41]} 16. Nf1 {[%emt 0:00:18]} Nxh3+ {[%emt 0:00:08]} 17. Kh1 {[%emt 0:00:05]} Nxf2+ {[%emt 0:00:04]} 18. Kg1 {[%emt 0:00:05]} Qxf3 {[%emt 0:00:41]} 19. Bxf3 {[%emt 0:00:10]} Nxd1 {[%emt 0:00:01]} 20. Rxd1 {[%emt 0:00:04]} Be4 {[%emt 0:00:02]} 21. Bg4 {[%emt 0:00:10]} f5 {[%emt 0:00:01]} 22. Bf3 {[%emt 0:00:06]} Bxf3 {[%emt 0:00:02]} 23. gxf3 {[%emt 0:00:03]} Nf6 {[%emt 0:00:02]} 24. Kf2 {[%emt 0:00:05]} Rfe8 {[%emt 0:00:01]} 25. Ng3 {[%emt 0:00:04]} f4 {[%emt 0:00:02]} 26. Nh5 {[%emt 0:00:04]} Nxh5 {[%emt 0:00:02]} 27. Rh1 {[%emt 0:00:11]} Ng3 {[%emt 0:00:05]} 28. Rh4 {[%emt 0:00:04]} Re2+ {[%emt 0:00:05]} 29. Kg1 {[%emt 0:00:06]} g5 {[%emt 0:00:06]} 30. Rg4 {[%emt 0:00:04]} h6 {[%emt 0:00:02]} 31. Rxg3 {[%emt 0:00:07]} fxg3 {[%emt 0:00:02]} 32. a4 {[%emt 0:00:05]} Rxb2 {[%emt 0:00:02]} 33. a5 {[%emt 0:00:06]} Re8 {[%emt 0:00:04]} 34. Kf1 {[%emt 0:00:07]} g2+ {[%emt 0:00:03]} 35. Kg1 {[%emt 0:00:04]} Re1+ {[%emt 0:00:03]} 36. Kh2 {[%emt 0:00:03]} g1=Q+ {[%emt 0:00:02]} 37. Kh3 {[%emt 0:00:03]} Rh2# {[%emt 0:00:03]} 0-1